[Event "3rd FIDE WCCC Blitz G10 2019"]
[Site "Minsk"]
[Date "2019.08.18"]
[Round "4.3"]
[White "Sidorenja, Milena"]
[Black "Ho, Ngoc Vy"]
[Result "0-1"]
[ECO "C44"]
[WhiteElo "1573"]
[BlackElo "1327"]
[Annotator "NA"]
[PlyCount "126"]
[EventDate "2019.08.18"]
[EventType "swiss"]
[EventCountry "BLR"]
[SourceTitle "playchess.com"]
[Source "ChessBase"]
[SourceQuality "1"]
[TimeControl "300+2"]

1. e4 {[%emt 0:00:00]} e5 {[%emt 0:00:00]} 2. Nf3 {[%emt 0:00:00]} Nc6 {[%emt 0:00:00]} 3. d4 exd4 {[%emt 0:00:00]} 4. c3 {[%emt 0:00:02]} dxc3 5. Nxc3 {[%emt 0:00:01]} Nf6 {[%emt 0:00:03]} 6. Bc4 {[%emt 0:00:02]} Bc5 {[%emt 0:00:00]} 7. e5 {[%emt 0:00:03]} d5 {[%emt 0:00:16]} 8. Bb3 {[%emt 0:01:17]} Ne4 {[%emt 0:01:16]} 9. Nxe4 {[%emt 0:00:03]} dxe4 {[%emt 0:00:02]} 10. Qxd8+ {[%emt 0:00:03]} Nxd8 {[%emt 0:00:01]} 11. Ng5 {[%emt 0:00:05]} Bf5 {[%emt 0:00:09]} 12. Bd2 {[%emt 0:00:51]} O-O {[%emt 0:00:04]} 13. Rc1 {[%emt 0:00:18]} Bb6 {[%emt 0:00:04]} 14. O-O {[%emt 0:00:04]} h6 {[%emt 0:00:06]} 15. Nh3 {[%emt 0:00:07]} Nc6 {[%emt 0:00:02]} 16. Bc3 {[%emt 0:00:39]} Rfe8 {[%emt 0:00:04]} 17. Nf4 {[%emt 0:00:05]} Nxe5 {[%emt 0:00:04]} 18. Nd5 {[%emt 0:00:04]} Nd3 {[%emt 0:00:09]} 19. Rcd1 {[%emt 0:00:02]} Rad8 {[%emt 0:00:57]} 20. Ne3 {[%emt 0:00:32]} Bg6 {[%emt 0:00:04]} 21. Nc4 {[%emt 0:00:10]} Bc5 {[%emt 0:00:04]} 22. Ne3 {[%emt 0:00:07]} b5 {[%emt 0:00:07]} 23. a3 {[%emt 0:00:06]} Kh8 {[%emt 0:00:12]} 24. Ba2 {[%emt 0:00:07]} f5 {[%emt 0:00:01]} 25. b4 {[%emt 0:00:04]} Bb6 {[%emt 0:00:02]} 26. Nd5 {[%emt 0:00:03]} f4 {[%emt 0:00:38]} 27. Nxb6 {[%emt 0:00:32]} axb6 {[%emt 0:00:03]} 28. Bb1 {[%emt 0:00:02]} e3 {[%emt 0:00:07]} 29. fxe3 {[%emt 0:00:14]} fxe3 {[%emt 0:00:02]} 30. Bxd3 {[%emt 0:00:04]} Bxd3 {[%emt 0:00:01]} 31. Rf7 {[%emt 0:00:05]} e2 {[%emt 0:00:21]} 32. Re1 {[%emt 0:00:02]} Rg8 {[%emt 0:00:07]} 33. Rxc7 {[%emt 0:00:02]} Rdf8 {[%emt 0:00:01]} 34. h3 {[%emt 0:00:09]} Rf1+ {[%emt 0:00:30]} 35. Kh2 {[%emt 0:00:01]} Bc4 {[%emt 0:00:04]} 36. Re7 {[%emt 0:00:01]} Rxe1 {[%emt 0:00:07]} 37. Bxe1 {[%emt 0:00:03]} Ra8 {[%emt 0:00:13]} 38. Bc3 {[%emt 0:00:01]} Rxa3 {[%emt 0:00:05]} 39. Bxg7+ {[%emt 0:00:04]} Kg8 {[%emt 0:00:01]} 40. Bd4 {[%emt 0:00:02]} e1=Q {[%emt 0:00:04]} 41. Rxe1 {[%emt 0:00:02]} Rd3 {[%emt 0:00:01]} 42. Bg1 {[%emt 0:00:01]} Rb3 {[%emt 0:00:01]} 43. Bxb6 {[%emt 0:00:02]} Rxb4 {[%emt 0:00:01]} 44. Bc5 {[%emt 0:00:01]} Rb3 {[%emt 0:00:01]} 45. Re8+ {[%emt 0:00:01]} Kf7 {[%emt 0:00:01]} 46. Re7+ {[%emt 0:00:01]} Kf6 {[%emt 0:00:00]} 47. Rb7 {[%emt 0:00:02]} Bf1 {[%emt 0:00:04]} 48. Bd4+ {[%emt 0:00:01]} Ke6 {[%emt 0:00:02]} 49. Rb6+ {[%emt 0:00:01]} Kd5 {[%emt 0:00:00]} 50. Bg1 {[%emt 0:00:03]} Rb2 {[%emt 0:00:01]} 51. Rg6 {[%emt 0:00:02]} b4 {[%emt 0:00:01]} 52. Be3 {[%emt 0:00:02]} b3 {[%emt 0:00:01]} 53. Bc1 {[%emt 0:00:01]} Rc2 {[%emt 0:00:01]} 54. Bxh6 {[%emt 0:00:03]} b2 {[%emt 0:00:01]} 55. Rg5+ {[%emt 0:00:02]} Kc4 {[%emt 0:00:02]} 56. Rg4+ {[%emt 0:00:01]} Kb3 {[%emt 0:00:03]} 57. Rg3+ {[%emt 0:00:01]} Rc3 {[%emt 0:00:02]} 58. Rg4 {[%emt 0:00:02]} b1=Q {[%emt 0:00:02]} 59. Rg8 {[%emt 0:00:02]} Qc2 {[%emt 0:00:03]} 60. Rb8+ {[%emt 0:00:02]} Ka2 {[%emt 0:00:00]} 61. Ra8+ {[%emt 0:00:02]} Ra3 {[%emt 0:00:01]} 62. Rxa3+ {[%emt 0:00:02]} Kxa3 {[%emt 0:00:01]} 63. Bf4 {[%emt 0:00:02]} Qxg2# {[%emt 0:00:01]} 0-1

[Event "3rd FIDE WCCC Blitz G10 2019"]
[Site "Minsk"]
[Date "2019.08.18"]
[Round "4.4"]
[White "Loviagina, Dariana"]
[Black "Satanovskaia, Evgeniia"]
[Result "0-1"]
[ECO "A04"]
[WhiteElo "1421"]
[BlackElo "1399"]
[Annotator "NA"]
[PlyCount "94"]
[EventDate "2019.08.18"]
[EventType "swiss"]
[EventCountry "BLR"]
[SourceTitle "playchess.com"]
[Source "ChessBase"]
[SourceQuality "1"]
[TimeControl "300+2"]

1. Nf3 {[%emt 0:00:00]} e6 {[%emt 0:00:00]} 2. b3 {[%emt 0:00:01]} d5 {[%emt 0:00:01]} 3. Bb2 {[%emt 0:00:01]} Nf6 {[%emt 0:00:00]} 4. e3 {[%emt 0:00:05]} Be7 {[%emt 0:00:01]} 5. d4 {[%emt 0:00:01]} c5 {[%emt 0:00:01]} 6. Bd3 {[%emt 0:00:02]} Nc6 {[%emt 0:00:02]} 7. O-O {[%emt 0:00:01]} O-O {[%emt 0:00:01]} 8. Nbd2 {[%emt 0:00:03]} cxd4 {[%emt 0:00:02]} 9. exd4 {[%emt 0:00:01]} Bd7 {[%emt 0:00:13]} 10. Ne5 {[%emt 0:00:02]} Rc8 {[%emt 0:00:11]} 11. f4 {[%emt 0:00:05]} Nb4 {[%emt 0:00:11]} 12. Ndf3 {[%emt 0:00:15]} Nxd3 {[%emt 0:00:13]} 13. Qxd3 {[%emt 0:00:05]} Ne4 {[%emt 0:00:07]} 14. Nxd7 {[%emt 0:00:08]} Qxd7 {[%emt 0:00:02]} 15. Ne5 {[%emt 0:00:02]} Qc7 {[%emt 0:00:02]} 16. Rac1 f6 {[%emt 0:00:18]} 17. Ng4 {[%emt 0:00:12]} Bd6 {[%emt 0:00:09]} 18. Qe3 {[%emt 0:00:11]} Qf7 {[%emt 0:00:34]} 19. c4 {[%emt 0:00:11]} Qg6 {[%emt 0:00:14]} 20. Nf2 {[%emt 0:00:28]} Qf5 {[%emt 0:00:38]} 21. Nxe4 {[%emt 0:00:07]} Qxe4 {[%emt 0:00:02]} 22. Qxe4 {[%emt 0:00:09]} dxe4 {[%emt 0:00:01]} 23. Rce1 {[%emt 0:00:03]} f5 {[%emt 0:00:06]} 24. Re3 {[%emt 0:00:03]} Rfd8 {[%emt 0:00:06]} 25. Rg3 {[%emt 0:00:05]} g6 {[%emt 0:00:10]} 26. Re3 {[%emt 0:00:05]} Kf7 {[%emt 0:00:05]} 27. Bc3 {[%emt 0:00:18]} Be7 {[%emt 0:00:02]} 28. Rd1 {[%emt 0:00:04]} Bf6 {[%emt 0:00:02]} 29. Kf2 {[%emt 0:00:19]} Rd7 {[%emt 0:00:06]} 30. Ke2 {[%emt 0:00:04]} Rcd8 {[%emt 0:00:05]} 31. h3 {[%emt 0:00:12]} Bxd4 {[%emt 0:00:08]} 32. Bxd4 {[%emt 0:00:05]} Rxd4 {[%emt 0:00:01]} 33. Rxd4 {[%emt 0:00:02]} Rxd4 {[%emt 0:00:00]} 34. g4 {[%emt 0:00:02]} Kf6 {[%emt 0:00:11]} 35. g5+ {[%emt 0:00:04]} Ke7 {[%emt 0:00:01]} 36. h4 {[%emt 0:00:01]} e5 {[%emt 0:00:05]} 37. fxe5 {[%emt 0:00:08]} Ke6 {[%emt 0:00:01]} 38. Rh3 {[%emt 0:00:12]} Kxe5 {[%emt 0:00:01]} 39. h5 {[%emt 0:00:04]} f4 {[%emt 0:00:34]} 40. hxg6 {[%emt 0:00:06]} hxg6 {[%emt 0:00:00]} 41. Rh7 {[%emt 0:00:06]} f3+ {[%emt 0:00:04]} 42. Ke1 {[%emt 0:00:04]} e3 {[%emt 0:00:14]} 43. Re7+ {[%emt 0:00:07]} Kf4 {[%emt 0:00:02]} 44. Rf7+ {[%emt 0:00:01]} Kg3 {[%emt 0:00:02]} 45. Rf6 {[%emt 0:00:19]} e2 {[%emt 0:00:09]} 46. Rxf3+ {[%emt 0:00:44]} Kxf3 {[%emt 0:00:04]} 47. c5 {[%emt 0:00:01]} Rd1# 0-1

[Event "3rd FIDE WCCC Blitz G10 2019"]
[Site "Minsk"]
[Date "2019.08.18"]
[Round "4.5"]
[White "Klintsevich, Aliaksandra"]
[Black "Khamdamova, Afruza"]
[Result "0-1"]
[ECO "D52"]
[WhiteElo "1114"]
[BlackElo "1607"]
[Annotator "NA"]
[PlyCount "92"]
[EventDate "2019.08.18"]
[EventType "swiss"]
[EventCountry "BLR"]
[SourceTitle "playchess.com"]
[Source "ChessBase"]
[SourceQuality "1"]
[TimeControl "300+2"]

1. c4 {[%emt 0:00:00]} Nf6 {[%emt 0:00:00]} 2. Nc3 {[%emt 0:00:02]} e6 {[%emt 0:00:00]} 3. d4 {[%emt 0:00:01]} d5 {[%emt 0:00:00]} 4. Bg5 {[%emt 0:00:04]} Nbd7 {[%emt 0:00:01]} 5. Nf3 {[%emt 0:00:02]} c6 {[%emt 0:00:01]} 6. e3 {[%emt 0:00:01]} Qa5 {[%emt 0:00:01]} 7. a3 {[%emt 0:00:21]} Ne4 {[%emt 0:00:05]} 8. Qc2 {[%emt 0:00:53]} Nxg5 {[%emt 0:00:02]} 9. Nxg5 {[%emt 0:00:02]} dxc4 {[%emt 0:00:02]} 10. Nge4 b5 {[%emt 0:00:14]} 11. Be2 {[%emt 0:00:27]} Be7 {[%emt 0:00:02]} 12. O-O {[%emt 0:00:03]} O-O {[%emt 0:00:02]} 13. f4 {[%emt 0:00:16]} Nf6 {[%emt 0:00:05]} 14. Rf3 {[%emt 0:00:26]} Bb7 {[%emt 0:00:26]} 15. Nxf6+ {[%emt 0:00:09]} Bxf6 {[%emt 0:00:02]} 16. Ne4 {[%emt 0:00:01]} Qd8 {[%emt 0:00:40]} 17. Rh3 {[%emt 0:00:08]} h6 {[%emt 0:00:09]} 18. Rf1 {[%emt 0:00:27]} Be7 {[%emt 0:00:51]} 19. Rff3 {[%emt 0:00:14]} f5 {[%emt 0:00:24]} 20. Nc5 {[%emt 0:00:16]} Bxc5 {[%emt 0:00:10]} 21. dxc5 {[%emt 0:00:02]} Qd5 {[%emt 0:00:08]} 22. Rfg3 {[%emt 0:00:11]} Kh7 {[%emt 0:00:46]} 23. Qc3 {[%emt 0:00:04]} Rf6 {[%emt 0:00:35]} 24. Bf3 {[%emt 0:00:26]} Qxc5 {[%emt 0:00:13]} 25. b4 {[%emt 0:00:03]} Qe7 {[%emt 0:00:02]} 26. Qe5 {[%emt 0:00:12]} Rd8 {[%emt 0:00:03]} 27. Qc3 {[%emt 0:00:26]} Rd3 {[%emt 0:00:04]} 28. Qc1 {[%emt 0:00:05]} Qd7 {[%emt 0:00:07]} 29. Be2 {[%emt 0:00:08]} Rd2 {[%emt 0:00:03]} 30. Bf3 {[%emt 0:00:04]} c5 {[%emt 0:00:01]} 31. bxc5 {[%emt 0:00:05]} Bxf3 {[%emt 0:00:01]} 32. Rxf3 {[%emt 0:00:04]} Rd1+ {[%emt 0:00:01]} 33. Qxd1 {[%emt 0:00:06]} Qxd1+ {[%emt 0:00:01]} 34. Rf1 {[%emt 0:00:01]} Qd5 {[%emt 0:00:01]} 35. Rd1 {[%emt 0:00:05]} Qxd1+ {[%emt 0:00:02]} 36. Kf2 {[%emt 0:00:01]} Qd2+ {[%emt 0:00:01]} 37. Kf3 {[%emt 0:00:02]} Rg6 {[%emt 0:00:01]} 38. Rg3 {[%emt 0:00:01]} Qd5+ {[%emt 0:00:02]} 39. Kf2 {[%emt 0:00:02]} Qxc5 40. Kf3 {[%emt 0:00:02]} c3 {[%emt 0:00:04]} 41. Kf2 {[%emt 0:00:01]} c2 {[%emt 0:00:01]} 42. Kf3 {[%emt 0:00:02]} c1=Q {[%emt 0:00:02]} 43. Kf2 {[%emt 0:00:03]} Rxg3 {[%emt 0:00:02]} 44. Kxg3 {[%emt 0:00:01]} Q1xe3+ {[%emt 0:00:02]} 45. Kh4 {[%emt 0:00:02]} Qxf4+ {[%emt 0:00:02]} 46. Kh3 {[%emt 0:00:03]} Qg4# {[%emt 0:00:01]} 0-1

[Event "3rd FIDE WCCC Blitz G10 2019"]
[Site "Minsk"]
[Date "2019.08.18"]
[Round "4.6"]
[White "Fedorova, Olesya"]
[Black "Moskalets, Sofiia"]
[Result "1-0"]
[ECO "B22"]
[WhiteElo "1524"]
[BlackElo "1291"]
[Annotator "NA"]
[PlyCount "147"]
[EventDate "2019.08.18"]
[EventType "swiss"]
[EventCountry "BLR"]
[SourceTitle "playchess.com"]
[Source "ChessBase"]
[SourceQuality "1"]
[TimeControl "300+2"]

1. e4 {[%emt 0:00:00]} c5 {[%emt 0:00:00]} 2. c3 {[%emt 0:00:00]} g6 {[%emt 0:00:00]} 3. d4 {[%emt 0:00:00]} cxd4 {[%emt 0:00:00]} 4. cxd4 {[%emt 0:00:01]} d5 {[%emt 0:00:01]} 5. e5 {[%emt 0:00:01]} Nc6 {[%emt 0:00:01]} 6. Nf3 {[%emt 0:00:02]} Bg7 {[%emt 0:00:01]} 7. Nc3 {[%emt 0:00:02]} e6 {[%emt 0:00:11]} 8. Bb5 {[%emt 0:00:02]} Bd7 {[%emt 0:00:01]} 9. O-O {[%emt 0:00:02]} Nge7 {[%emt 0:00:05]} 10. Be3 {[%emt 0:00:04]} O-O {[%emt 0:00:01]} 11. Bxc6 Bxc6 {[%emt 0:00:02]} 12. Rc1 {[%emt 0:00:10]} Rc8 {[%emt 0:00:01]} 13. a3 Nf5 {[%emt 0:00:06]} 14. Bg5 {[%emt 0:00:24]} Qd7 {[%emt 0:00:07]} 15. Qd2 {[%emt 0:00:07]} h6 {[%emt 0:00:07]} 16. Be3 {[%emt 0:00:12]} Nxe3 {[%emt 0:00:03]} 17. fxe3 {[%emt 0:00:13]} Kh7 {[%emt 0:00:06]} 18. h3 {[%emt 0:00:17]} Qe7 {[%emt 0:00:16]} 19. Nh2 {[%emt 0:00:03]} h5 {[%emt 0:00:26]} 20. Nf3 {[%emt 0:00:06]} Bh6 {[%emt 0:00:01]} 21. Qe2 {[%emt 0:00:19]} Rg8 {[%emt 0:00:14]} 22. Rcd1 {[%emt 0:00:07]} Rcf8 {[%emt 0:00:05]} 23. e4 dxe4 {[%emt 0:00:21]} 24. Nxe4 {[%emt 0:00:07]} Bxe4 {[%emt 0:00:05]} 25. Qxe4 {[%emt 0:00:02]} Kh8 {[%emt 0:00:26]} 26. Nd2 {[%emt 0:00:23]} Bxd2 {[%emt 0:00:23]} 27. Rxd2 {[%emt 0:00:02]} Kg7 {[%emt 0:00:42]} 28. Rc2 {[%emt 0:00:07]} Rc8 {[%emt 0:00:13]} 29. Rfc1 {[%emt 0:00:06]} Qd7 {[%emt 0:00:15]} 30. Rc3 {[%emt 0:00:31]} Rgd8 {[%emt 0:00:07]} 31. Qf4 {[%emt 0:00:10]} Rxc3 {[%emt 0:00:17]} 32. bxc3 {[%emt 0:00:04]} Kg8 {[%emt 0:00:06]} 33. Rb1 {[%emt 0:00:12]} b6 {[%emt 0:00:04]} 34. Rf1 {[%emt 0:00:18]} Qe7 {[%emt 0:00:13]} 35. a4 {[%emt 0:00:15]} Rc8 {[%emt 0:00:03]} 36. Qf3 {[%emt 0:00:02]} Rd8 {[%emt 0:00:02]} 37. Qf4 {[%emt 0:00:14]} Rc8 {[%emt 0:00:03]} 38. Rf3 {[%emt 0:00:01]} Kg7 {[%emt 0:00:08]} 39. Qe3 {[%emt 0:00:30]} Rc7 {[%emt 0:00:05]} 40. Rf1 {[%emt 0:00:04]} Rc8 {[%emt 0:00:02]} 41. Qf3 {[%emt 0:00:04]} Rc7 42. Kh2 {[%emt 0:00:13]} Rc8 {[%emt 0:00:02]} 43. Ra1 {[%emt 0:00:10]} Rc7 {[%emt 0:00:01]} 44. Rf1 {[%emt 0:00:06]} Rc8 {[%emt 0:00:01]} 45. Ra1 {[%emt 0:00:03]} Rd8 {[%emt 0:00:02]} 46. Rf1 {[%emt 0:00:03]} Rd7 {[%emt 0:00:00]} 47. Ra1 {[%emt 0:00:02]} Rc7 {[%emt 0:00:01]} 48. Rf1 {[%emt 0:00:01]} Rc8 {[%emt 0:00:02]} 49. Rf2 {[%emt 0:00:02]} Qc7 {[%emt 0:00:01]} 50. Qf6+ {[%emt 0:00:04]} Kg8 {[%emt 0:00:01]} 51. Rf3 {[%emt 0:00:03]} Qd8 {[%emt 0:00:02]} 52. Qxf7+ {[%emt 0:00:02]} Kh8 {[%emt 0:00:00]} 53. Qxe6 {[%emt 0:00:03]} Rc7 {[%emt 0:00:06]} 54. Qxg6 {[%emt 0:00:03]} Rd7 {[%emt 0:00:12]} 55. Qxh5+ {[%emt 0:00:03]} Rh7 {[%emt 0:00:01]} 56. Qf5 {[%emt 0:00:03]} Rg7 {[%emt 0:00:24]} 57. Qf8+ {[%emt 0:00:02]} Rg8 {[%emt 0:00:00]} 58. Qxd8 Rxd8 {[%emt 0:00:01]} 59. g4 {[%emt 0:00:04]} Rc8 {[%emt 0:00:01]} 60. Kg3 {[%emt 0:00:01]} Kg7 {[%emt 0:00:00]} 61. g5 Kg6 {[%emt 0:00:00]} 62. Kg4 {[%emt 0:00:03]} Rc4 63. h4 {[%emt 0:00:03]} Rxa4 {[%emt 0:00:03]} 64. h5+ {[%emt 0:00:02]} Kg7 {[%emt 0:00:00]} 65. h6+ {[%emt 0:00:02]} Kg8 {[%emt 0:00:01]} 66. g6 {[%emt 0:00:03]} Rc4 {[%emt 0:00:01]} 67. Kg5 {[%emt 0:00:01]} Rc7 68. h7+ {[%emt 0:00:02]} Rxh7 {[%emt 0:00:03]} 69. gxh7+ {[%emt 0:00:01]} Kxh7 {[%emt 0:00:01]} 70. e6 {[%emt 0:00:02]} Kg7 {[%emt 0:00:00]} 71. e7 {[%emt 0:00:02]} Kh7 {[%emt 0:00:01]} 72. e8=Q {[%emt 0:00:03]} a5 {[%emt 0:00:01]} 73. Qg6+ {[%emt 0:00:03]} Kh8 {[%emt 0:00:01]} 74. Rf8# 1-0

[Event "3rd FIDE WCCC Blitz G10 2019"]
[Site "Minsk"]
[Date "2019.08.18"]
[Round "5.1"]
[White "Shukhman, Anna"]
[Black "Satanovskaia, Evgeniia"]
[Result "1-0"]
[ECO "C18"]
[WhiteElo "1806"]
[BlackElo "1399"]
[Annotator "NA"]
[PlyCount "77"]
[EventDate "2019.08.18"]
[EventType "swiss"]
[EventCountry "BLR"]
[SourceTitle "playchess.com"]
[Source "ChessBase"]
[SourceQuality "1"]
[TimeControl "300+2"]

1. e4 e6 2. d4 {[%emt 0:00:03]} d5 {[%emt 0:00:00]} 3. Nc3 {[%emt 0:00:01]} Bb4 {[%emt 0:00:00]} 4. e5 {[%emt 0:00:01]} c5 {[%emt 0:00:00]} 5. a3 {[%emt 0:00:01]} Bxc3+ {[%emt 0:00:01]} 6. bxc3 {[%emt 0:00:01]} Nc6 {[%emt 0:00:06]} 7. Qg4 {[%emt 0:00:07]} Kf8 {[%emt 0:00:17]} 8. Bd3 {[%emt 0:00:13]} Nge7 {[%emt 0:00:06]} 9. Ne2 {[%emt 0:00:06]} Ng6 {[%emt 0:00:10]} 10. O-O {[%emt 0:00:10]} Qh4 {[%emt 0:00:18]} 11. Qf3 {[%emt 0:00:25]} cxd4 {[%emt 0:00:22]} 12. g3 {[%emt 0:00:33]} Ngxe5 13. Qg2 {[%emt 0:00:30]} Qf6 {[%emt 0:00:28]} 14. cxd4 {[%emt 0:00:10]} Nxd3 {[%emt 0:00:09]} 15. cxd3 {[%emt 0:00:03]} Nxd4 {[%emt 0:00:17]} 16. Nxd4 Qxd4 {[%emt 0:00:01]} 17. Be3 {[%emt 0:00:08]} Qf6 {[%emt 0:00:17]} 18. Rac1 {[%emt 0:00:14]} Kg8 {[%emt 0:00:13]} 19. Rc7 {[%emt 0:00:07]} h6 {[%emt 0:00:06]} 20. Rfc1 {[%emt 0:00:07]} Kh7 {[%emt 0:00:10]} 21. Qh3 {[%emt 0:00:16]} b6 {[%emt 0:00:17]} 22. Qg4 {[%emt 0:00:19]} e5 {[%emt 0:00:31]} 23. Rxc8 {[%emt 0:00:14]} Rhxc8 {[%emt 0:00:08]} 24. Rxc8 {[%emt 0:00:02]} Rxc8 {[%emt 0:00:04]} 25. Qxc8 {[%emt 0:00:02]} d4 {[%emt 0:00:19]} 26. Bc1 {[%emt 0:00:05]} Qf3 {[%emt 0:00:04]} 27. Qc4 {[%emt 0:00:18]} a5 {[%emt 0:00:32]} 28. a4 {[%emt 0:00:04]} h5 {[%emt 0:00:09]} 29. h4 {[%emt 0:00:16]} f6 {[%emt 0:00:10]} 30. Ba3 {[%emt 0:00:07]} Kg6 {[%emt 0:00:14]} 31. Bd6 {[%emt 0:00:34]} Kh7 {[%emt 0:00:19]} 32. Bc7 {[%emt 0:00:04]} Qb7 {[%emt 0:00:08]} 33. Qf7 {[%emt 0:00:25]} Qf3 {[%emt 0:00:04]} 34. Qc4 {[%emt 0:00:06]} Qb7 {[%emt 0:00:03]} 35. Bd6 {[%emt 0:00:01]} Qf3 {[%emt 0:00:01]} 36. Qc2 {[%emt 0:00:05]} e4 {[%emt 0:00:04]} 37. dxe4 {[%emt 0:00:04]} d3 {[%emt 0:00:01]} 38. Qd2 {[%emt 0:00:10]} Qxe4 {[%emt 0:00:03]} 39. Bf4 1-0

[Event "3rd FIDE WCCC Blitz G10 2019"]
[Site "Minsk"]
[Date "2019.08.18"]
[Round "5.2"]
[White "Khamdamova, Afruza"]
[Black "Nurgaliyeva, Zarina"]
[Result "1-0"]
[ECO "C72"]
[WhiteElo "1607"]
[BlackElo "1474"]
[Annotator "NA"]
[PlyCount "99"]
[EventDate "2019.08.18"]
[EventType "swiss"]
[EventCountry "BLR"]
[SourceTitle "playchess.com"]
[Source "ChessBase"]
[SourceQuality "1"]
[TimeControl "300+2"]

1. e4 {[%emt 0:00:00]} e5 2. Nf3 {[%emt 0:00:00]} Nc6 {[%emt 0:00:00]} 3. Bb5 {[%emt 0:00:00]} a6 {[%emt 0:00:02]} 4. Ba4 {[%emt 0:00:00]} d6 {[%emt 0:00:01]} 5. O-O {[%emt 0:00:12]} Bd7 {[%emt 0:00:01]} 6. c3 {[%emt 0:00:04]} g6 {[%emt 0:00:02]} 7. d4 {[%emt 0:00:03]} Bg7 {[%emt 0:00:09]} 8. Re1 {[%emt 0:00:12]} Nf6 {[%emt 0:00:09]} 9. Bg5 {[%emt 0:00:02]} h6 {[%emt 0:00:09]} 10. Bh4 {[%emt 0:00:05]} O-O {[%emt 0:00:27]} 11. Nbd2 {[%emt 0:00:11]} Re8 {[%emt 0:00:04]} 12. Bb3 {[%emt 0:00:25]} b5 {[%emt 0:00:14]} 13. h3 {[%emt 0:00:25]} Na5 {[%emt 0:00:10]} 14. Bc2 {[%emt 0:00:04]} c5 {[%emt 0:00:03]} 15. Nf1 {[%emt 0:00:07]} Nb7 {[%emt 0:00:17]} 16. Qd2 {[%emt 0:00:11]} Bc6 {[%emt 0:00:57]} 17. d5 {[%emt 0:00:14]} Bd7 {[%emt 0:00:01]} 18. a4 {[%emt 0:00:10]} c4 {[%emt 0:00:03]} 19. N1h2 {[%emt 0:00:30]} g5 {[%emt 0:00:07]} 20. Bg3 {[%emt 0:00:07]} Nc5 {[%emt 0:00:04]} 21. axb5 {[%emt 0:00:12]} axb5 {[%emt 0:00:02]} 22. Qe3 {[%emt 0:00:15]} Qb6 {[%emt 0:00:11]} 23. Nd2 {[%emt 0:00:35]} Ra7 {[%emt 0:00:26]} 24. Rxa7 {[%emt 0:00:08]} Qxa7 {[%emt 0:00:02]} 25. b4 {[%emt 0:00:03]} cxb3 {[%emt 0:00:06]} 26. Nxb3 {[%emt 0:00:01]} Qa2 {[%emt 0:00:12]} 27. Nxc5 {[%emt 0:00:04]} dxc5 {[%emt 0:00:07]} 28. Bd3 {[%emt 0:00:16]} Qa7 {[%emt 0:00:33]} 29. h4 {[%emt 0:00:11]} Nh7 {[%emt 0:00:09]} 30. hxg5 {[%emt 0:00:09]} Nxg5 {[%emt 0:00:11]} 31. Nf3 {[%emt 0:00:07]} Nxf3+ {[%emt 0:00:04]} 32. Qxf3 {[%emt 0:00:01]} Qa2 {[%emt 0:00:06]} 33. Qe3 {[%emt 0:00:07]} Rc8 {[%emt 0:00:04]} 34. Rf1 {[%emt 0:00:04]} Qb3 {[%emt 0:00:11]} 35. Be2 {[%emt 0:00:05]} b4 {[%emt 0:00:10]} 36. cxb4 {[%emt 0:00:09]} Qxb4 {[%emt 0:00:03]} 37. f4 {[%emt 0:00:07]} exf4 {[%emt 0:00:01]} 38. Qxf4 {[%emt 0:00:01]} Rf8 {[%emt 0:00:12]} 39. Bg4 {[%emt 0:00:03]} Bxg4 {[%emt 0:00:02]} 40. Qxg4 {[%emt 0:00:01]} Qd4+ {[%emt 0:00:03]} 41. Kh1 {[%emt 0:00:01]} c4 {[%emt 0:00:02]} 42. d6 {[%emt 0:00:06]} c3 {[%emt 0:00:02]} 43. Rd1 {[%emt 0:00:04]} Qf6 {[%emt 0:00:09]} 44. e5 {[%emt 0:00:02]} Qd8 {[%emt 0:00:05]} 45. Bh4 {[%emt 0:00:02]} c2 {[%emt 0:00:13]} 46. Bxd8 {[%emt 0:00:02]} cxd1=Q+ {[%emt 0:00:02]} 47. Qxd1 {[%emt 0:00:01]} Rxd8 {[%emt 0:00:01]} 48. Qd5 {[%emt 0:00:01]} Kf8 {[%emt 0:00:02]} 49. d7 {[%emt 0:00:03]} Ke7 {[%emt 0:00:00]} 50. Qd6# {[%emt 0:00:02]} 1-0

[Event "3rd FIDE WCCC Blitz G10 2019"]
[Site "Minsk"]
[Date "2019.08.18"]
[Round "5.3"]
[White "Ho, Ngoc Vy"]
[Black "Mizerova, Yana"]
[Result "1-0"]
[ECO "D45"]
[WhiteElo "1327"]
[BlackElo "1451"]
[Annotator "NA"]
[PlyCount "81"]
[EventDate "2019.08.18"]
[EventType "swiss"]
[EventCountry "BLR"]
[SourceTitle "playchess.com"]
[Source "ChessBase"]
[SourceQuality "1"]
[TimeControl "300+2"]

1. d4 {[%emt 0:00:00]} d5 {[%emt 0:00:00]} 2. c4 {[%emt 0:00:00]} e6 {[%emt 0:00:00]} 3. Nf3 {[%emt 0:00:01]} c6 {[%emt 0:00:01]} 4. e3 {[%emt 0:00:01]} Nf6 {[%emt 0:00:06]} 5. Nc3 {[%emt 0:00:01]} Bd6 {[%emt 0:00:06]} 6. Bd3 {[%emt 0:00:01]} dxc4 {[%emt 0:00:01]} 7. Bxc4 {[%emt 0:00:02]} b5 {[%emt 0:00:01]} 8. Bd3 {[%emt 0:00:01]} Nbd7 {[%emt 0:00:14]} 9. O-O {[%emt 0:00:02]} O-O {[%emt 0:00:02]} 10. Qc2 {[%emt 0:00:01]} Bb7 {[%emt 0:00:15]} 11. e4 {[%emt 0:00:05]} e5 {[%emt 0:00:10]} 12. dxe5 {[%emt 0:00:09]} Nxe5 {[%emt 0:00:07]} 13. Nxe5 {[%emt 0:00:02]} Bxe5 {[%emt 0:00:03]} 14. Rd1 {[%emt 0:00:01]} Qc7 {[%emt 0:00:19]} 15. h3 {[%emt 0:00:02]} Rad8 {[%emt 0:00:05]} 16. Be3 {[%emt 0:00:01]} a6 {[%emt 0:00:06]} 17. Rac1 {[%emt 0:00:02]} c5 {[%emt 0:00:15]} 18. b3 {[%emt 0:00:16]} c4 {[%emt 0:00:20]} 19. bxc4 {[%emt 0:00:03]} bxc4 {[%emt 0:00:02]} 20. Be2 {[%emt 0:00:01]} Bxc3 {[%emt 0:00:24]} 21. Qxc3 {[%emt 0:00:02]} Nxe4 {[%emt 0:00:13]} 22. Qxc4 {[%emt 0:00:00]} Qxc4 {[%emt 0:00:13]} 23. Bxc4 {[%emt 0:00:01]} Rc8 {[%emt 0:00:24]} 24. Be2 {[%emt 0:00:15]} Nc3 {[%emt 0:00:12]} 25. Rd2 {[%emt 0:00:10]} Nxe2+ {[%emt 0:00:22]} 26. Rxe2 {[%emt 0:00:01]} Rfe8 {[%emt 0:00:13]} 27. Rec2 {[%emt 0:00:02]} Rxc2 {[%emt 0:00:19]} 28. Rxc2 {[%emt 0:00:02]} Rc8 {[%emt 0:00:02]} 29. Rb2 {[%emt 0:00:01]} Bd5 {[%emt 0:00:07]} 30. a4 {[%emt 0:00:13]} h6 {[%emt 0:00:04]} 31. a5 {[%emt 0:00:12]} Rc4 {[%emt 0:00:15]} 32. Rd2 {[%emt 0:00:38]} Be6 {[%emt 0:00:04]} 33. Rd6 {[%emt 0:00:05]} Bc8 {[%emt 0:00:05]} 34. Rd8+ {[%emt 0:00:05]} Kh7 {[%emt 0:00:02]} 35. Rf8 {[%emt 0:00:10]} Be6 {[%emt 0:00:04]} 36. Ra8 {[%emt 0:00:06]} Bc8 {[%emt 0:00:13]} 37. Ra7 {[%emt 0:00:01]} Kg6 {[%emt 0:00:02]} 38. Kf1 {[%emt 0:00:06]} Rc6 {[%emt 0:00:04]} 39. Bb6 {[%emt 0:00:16]} Rd6 {[%emt 0:00:08]} 40. Rc7 {[%emt 0:00:08]} Rd8 {[%emt 0:00:04]} 41. Rc6+ 1-0